[Event "*** Biggest EVER Titled Tuesday"]
[Site "Chess.com"]
[Date "2018.04.17"]
[Round "3"]
[White "Thee-Chessboy"]
[Black "AnonymousBread"]
[Result "0-1"]
[WhiteElo "2288"]
[BlackElo "2403"]
[TimeControl "180+2"]
[EndTime "13:36:14 PDT"]
[Termination "AnonymousBread won by resignation"]

1. d4 {[%clk 0:02:59.2]} 1... Nf6 {[%clk 0:03:00.9]} 2. c4 {[%clk 0:03:00.5]}
2... g6 {[%clk 0:03:02.4]} 3. Nf3 {[%clk 0:03:01.8]} 3... Bg7 {[%clk 0:03:03.9]}
4. g3 {[%clk 0:03:02.9]} 4... O-O {[%clk 0:03:05.4]} 5. Bg2 {[%clk 0:03:04.3]}
5... d6 {[%clk 0:03:07.3]} 6. O-O {[%clk 0:03:05.1]} 6... c6 {[%clk 0:03:09.2]}
7. Nc3 {[%clk 0:03:04.5]} 7... Qa5 {[%clk 0:03:10.7]} 8. Re1 {[%clk 0:03:03]}
8... e5 {[%clk 0:03:11.6]} 9. h3 {[%clk 0:02:57.6]} 9... Re8 {[%clk 0:03:09.9]}
10. e4 {[%clk 0:02:53.6]} 10... Nbd7 {[%clk 0:03:09]} 11. a3 {[%clk 0:02:47.9]}
11... exd4 {[%clk 0:03:07.8]} 12. Nxd4 {[%clk 0:02:41.9]} 12... Ne5 {[%clk
0:02:59.2]} 13. b4 {[%clk 0:02:28.8]} 13... Qc7 {[%clk 0:02:59]} 14. Bf1 {[%clk
0:02:28.8]} 14... Be6 {[%clk 0:02:53.7]} 15. Nxe6 {[%clk 0:02:28.8]} 15... Rxe6
{[%clk 0:02:55.6]} 16. f4 {[%clk 0:02:24.7]} 16... Ned7 {[%clk 0:02:55.6]} 17.
Ra2 {[%clk 0:02:16.3]} 17... Rae8 {[%clk 0:02:55.4]} 18. Rae2 {[%clk 0:02:11.2]}
18... h5 {[%clk 0:02:56.1]} 19. Bg2 {[%clk 0:01:56.9]} 19... a5 {[%clk
0:02:48.2]} 20. Qb3 {[%clk 0:01:52.6]} 20... axb4 {[%clk 0:02:47.1]} 21. axb4
{[%clk 0:01:53.4]} 21... Nh7 {[%clk 0:02:02]} 22. Be3 {[%clk 0:01:29]} 22... Qd8
{[%clk 0:01:50.6]} 23. Bf2 {[%clk 0:01:09.8]} 23... h4 {[%clk 0:01:42]} 24. Nd1
{[%clk 0:00:43.9]} 24... hxg3 {[%clk 0:01:40.3]} 25. Bxg3 {[%clk 0:00:45.1]}
25... f5 {[%clk 0:01:36.3]} 26. c5 {[%clk 0:00:37.9]} 26... d5 {[%clk
0:01:35.2]} 27. e5 {[%clk 0:00:37.6]} 27... b6 {[%clk 0:01:35.7]} 28. Bf2 {[%clk
0:00:34]} 28... bxc5 {[%clk 0:01:31.4]} 29. bxc5 {[%clk 0:00:35]} 29... g5
{[%clk 0:01:32.2]} 30. Ne3 {[%clk 0:00:23.1]} 30... gxf4 {[%clk 0:01:29]} 31.
Nxd5 {[%clk 0:00:20.6]} 31... cxd5 {[%clk 0:01:25.7]} 32. Bxd5 {[%clk
0:00:21.4]} 32... Nhf8 {[%clk 0:01:25.6]} 33. c6 {[%clk 0:00:21.8]} 33... Nb8
{[%clk 0:01:17.6]} 34. Bb6 {[%clk 0:00:22.3]} 34... Qe7 {[%clk 0:01:12.2]} 35.
c7 {[%clk 0:00:22.4]} 35... Nbd7 {[%clk 0:01:07.4]} 36. Bd4 {[%clk 0:00:21.6]}
36... Kh8 {[%clk 0:01:01.9]} 37. Bxe6 {[%clk 0:00:22.3]} 37... Nxe6 {[%clk
0:01:03.8]} 38. Bb2 {[%clk 0:00:22.1]} 38... Qc5+ {[%clk 0:01:03.6]} 39. Kh1
{[%clk 0:00:21.9]} 39... Qxc7 {[%clk 0:01:05.1]} 40. Rg2 {[%clk 0:00:22.3]}
40... Qc6 {[%clk 0:01:02.6]} 41. Kh2 {[%clk 0:00:22.7]} 41... f3 {[%clk
0:01:01.3]} 42. Rf2 {[%clk 0:00:22.5]} 42... Ndc5 {[%clk 0:00:56.1]} 43. Qc4
{[%clk 0:00:21.7]} 43... Qb7 {[%clk 0:00:50.9]} 44. Qh4+ {[%clk 0:00:22.3]}
44... Kg8 {[%clk 0:00:51.1]} 45. Bc1 {[%clk 0:00:17.1]} 45... Nd3 {[%clk
0:00:51.7]} 46. Rg1 {[%clk 0:00:18]} 46... Nxf2 {[%clk 0:00:50.7]} 47. Bh6
{[%clk 0:00:18]} 47... Qe4 {[%clk 0:00:47.9]} 48. Bxg7 {[%clk 0:00:18.6]} 48...
Nxg7 {[%clk 0:00:49.8]} 49. Qf6 {[%clk 0:00:19.6]} 49... Qxe5+ {[%clk
0:00:51.1]} 50. Qxe5 {[%clk 0:00:19.9]} 50... Rxe5 {[%clk 0:00:53]} 0-1

[Event "*** Biggest EVER Titled Tuesday"]
[Site "Chess.com"]
[Date "2018.04.17"]
[Round "3"]
[White "SenseiJulio"]
[Black "Shant_Sargsyan"]
[Result "0-1"]
[WhiteElo "2626"]
[BlackElo "2815"]
[TimeControl "180+2"]
[EndTime "13:36:17 PDT"]
[Termination "Shant_Sargsyan won by resignation"]

1. Nf3 {[%clk 0:03:01.9]} 1... d5 {[%clk 0:02:44.6]} 2. e3 {[%clk 0:03:01.5]}
2... Nf6 {[%clk 0:02:41.9]} 3. d4 {[%clk 0:03:00.2]} 3... Bf5 {[%clk 0:02:35.1]}
4. Bd3 {[%clk 0:02:48.8]} 4... Bxd3 {[%clk 0:02:34.7]} 5. Qxd3 {[%clk
0:02:48.7]} 5... c6 {[%clk 0:02:35.8]} 6. O-O {[%clk 0:02:42.3]} 6... e6 {[%clk
0:02:31.5]} 7. c4 {[%clk 0:02:31.3]} 7... Nbd7 {[%clk 0:02:31.6]} 8. Nc3 {[%clk
0:02:31.3]} 8... Be7 {[%clk 0:02:30.4]} 9. e4 {[%clk 0:02:30.9]} 9... dxe4
{[%clk 0:02:29.6]} 10. Nxe4 {[%clk 0:02:31.8]} 10... Nxe4 {[%clk 0:02:29.3]} 11.
Qxe4 {[%clk 0:02:33.7]} 11... O-O {[%clk 0:02:30.5]} 12. Bd2 {[%clk 0:02:28.9]}
12... Nf6 {[%clk 0:02:30.5]} 13. Qe2 {[%clk 0:02:27.3]} 13... a5 {[%clk
0:02:17.6]} 14. Rad1 {[%clk 0:02:22.6]} 14... a4 {[%clk 0:02:17.6]} 15. Rfe1
{[%clk 0:02:16.2]} 15... b5 {[%clk 0:02:14.2]} 16. Ne5 {[%clk 0:02:11.4]} 16...
Qb6 {[%clk 0:01:43.3]} 17. Bg5 {[%clk 0:01:55.3]} 17... bxc4 {[%clk 0:01:40.3]}
18. Bxf6 {[%clk 0:01:55.3]} 18... Bxf6 {[%clk 0:01:40.7]} 19. Nd7 {[%clk
0:01:56.8]} 19... Qb5 {[%clk 0:01:41.7]} 20. Nxf6+ {[%clk 0:01:41.8]} 20... gxf6
{[%clk 0:01:40.2]} 21. Qf3 {[%clk 0:01:43.3]} 21... Qd5 {[%clk 0:01:36.3]} 22.
Qxf6 {[%clk 0:01:43.6]} 22... Qd8 {[%clk 0:01:27.7]} 23. Qh6 {[%clk 0:01:43.3]}
23... Ra5 {[%clk 0:01:24.6]} 24. h4 {[%clk 0:01:42.7]} 24... Kh8 {[%clk
0:01:17.5]} 25. Qf4 {[%clk 0:01:18.9]} 25... Rf5 {[%clk 0:01:12.9]} 26. Qh6
{[%clk 0:01:08]} 26... Rg8 {[%clk 0:01:11.9]} 27. Re4 {[%clk 0:01:03.5]} 27...
Rg6 {[%clk 0:01:07]} 28. Qe3 {[%clk 0:01:04]} 28... h6 {[%clk 0:00:56.9]} 29. g3
{[%clk 0:01:04.3]} 29... Kh7 {[%clk 0:00:57.5]} 30. Re5 {[%clk 0:01:01.4]} 30...
Rxe5 {[%clk 0:00:55.1]} 31. Qxe5 {[%clk 0:01:01.4]} 31... Qd5 {[%clk 0:00:56.7]}
32. Qf4 {[%clk 0:01:00]} 32... Kg7 {[%clk 0:00:56.1]} 33. Re1 {[%clk 0:00:58.2]}
33... Rf6 {[%clk 0:00:39.7]} 34. Qg4+ {[%clk 0:00:55.7]} 34... Rg6 {[%clk
0:00:40.2]} 35. Qf4 {[%clk 0:00:56.6]} 35... Rf6 {[%clk 0:00:41.3]} 36. Qe5
{[%clk 0:00:55.4]} 36... Qxe5 {[%clk 0:00:34.2]} 37. Rxe5 {[%clk 0:00:52]} 37...
Rf3 {[%clk 0:00:32.1]} 38. Rc5 {[%clk 0:00:52.8]} 38... a3 {[%clk 0:00:31.2]}
39. bxa3 {[%clk 0:00:52.9]} 39... Rxa3 {[%clk 0:00:33.1]} 40. Rxc6 {[%clk
0:00:51.6]} 40... c3 {[%clk 0:00:32.9]} 41. Kg2 {[%clk 0:00:41.2]} 41... Kf6
{[%clk 0:00:26]} 42. g4 {[%clk 0:00:38.6]} 42... Ke7 {[%clk 0:00:24.3]} 43. Rc5
{[%clk 0:00:33.9]} 43... Kd6 {[%clk 0:00:23]} 44. h5 {[%clk 0:00:32]} 44... f6
{[%clk 0:00:23.4]} 45. Kf1 {[%clk 0:00:31.9]} 45... e5 {[%clk 0:00:24.1]} 46.
Rc4 {[%clk 0:00:23.2]} 46... Kd5 {[%clk 0:00:24.7]} 47. Rc8 {[%clk 0:00:22.8]}
47... exd4 {[%clk 0:00:25.4]} 48. Ke1 {[%clk 0:00:21.9]} 48... Rxa2 {[%clk
0:00:26.2]} 49. f4 {[%clk 0:00:20.8]} 49... Ke4 {[%clk 0:00:27.1]} 50. g5 {[%clk
0:00:21.9]} 50... fxg5 {[%clk 0:00:27.2]} 51. fxg5 {[%clk 0:00:23.8]} 51... hxg5
{[%clk 0:00:29]} 52. h6 {[%clk 0:00:25.2]} 52... Rh2 {[%clk 0:00:29.6]} 0-1

[Event "*** Biggest EVER Titled Tuesday"]
[Site "Chess.com"]
[Date "2018.04.17"]
[Round "3"]
[White "GM_dmitrij"]
[Black "rezacz"]
[Result "1-0"]
[WhiteElo "2660"]
[BlackElo "2430"]
[TimeControl "180+2"]
[EndTime "13:36:29 PDT"]
[Termination "GM_dmitrij won by resignation"]

1. e4 {[%clk 0:03:01.8]} 1... e5 {[%clk 0:03:00.1]} 2. Nf3 {[%clk 0:03:02.2]}
2... Nc6 {[%clk 0:03:00.4]} 3. Bc4 {[%clk 0:03:03.7]} 3... Bc5 {[%clk 0:03:01]}
4. c3 {[%clk 0:03:04.6]} 4... Nf6 {[%clk 0:03:02.1]} 5. d3 {[%clk 0:03:06]} 5...
a6 {[%clk 0:03:02.1]} 6. O-O {[%clk 0:03:05.1]} 6... Ba7 {[%clk 0:03:03.6]} 7.
Bb3 {[%clk 0:03:05.7]} 7... d6 {[%clk 0:03:02.3]} 8. Nbd2 {[%clk 0:03:06.1]}
8... h6 {[%clk 0:03:00]} 9. Nc4 {[%clk 0:03:06.8]} 9... O-O {[%clk 0:02:30.3]}
10. h3 {[%clk 0:03:02.4]} 10... Ne7 {[%clk 0:02:30.8]} 11. Be3 {[%clk 0:03:03]}
11... Ng6 {[%clk 0:02:30.9]} 12. a4 {[%clk 0:02:58.6]} 12... Bxe3 {[%clk
0:02:30.8]} 13. Nxe3 {[%clk 0:02:57.4]} 13... Re8 {[%clk 0:02:26.9]} 14. Kh2
{[%clk 0:02:54.7]} 14... Nf4 {[%clk 0:02:25.6]} 15. Bc2 {[%clk 0:02:51.1]} 15...
N6h5 {[%clk 0:02:20.1]} 16. Ng1 {[%clk 0:02:48.3]} 16... Re6 {[%clk 0:01:28.1]}
17. g3 {[%clk 0:02:48.5]} 17... Rg6 {[%clk 0:01:29.7]} 18. gxf4 {[%clk
0:02:37.8]} 18... Nxf4 {[%clk 0:01:30]} 19. Qf3 {[%clk 0:02:25.4]} 19... Qh4
{[%clk 0:01:26.2]} 20. Nf5 {[%clk 0:02:24.3]} 20... Bxf5 {[%clk 0:01:15.6]} 21.
exf5 {[%clk 0:02:26.2]} 21... Rg2+ {[%clk 0:01:16.7]} 22. Kh1 {[%clk 0:02:08.6]}
22... Re8 {[%clk 0:01:04.1]} 23. Ne2 {[%clk 0:01:50.1]} 23... Rg5 {[%clk
0:00:19.3]} 24. Nxf4 {[%clk 0:01:49.5]} 24... exf4 {[%clk 0:00:21.2]} 25. Rg1
{[%clk 0:01:27.9]} 25... Rg3 {[%clk 0:00:07.1]} 26. Rxg3 {[%clk 0:01:24.9]}
26... fxg3 {[%clk 0:00:08.1]} 27. Qxg3 {[%clk 0:01:26.7]} 27... Qf6 {[%clk
0:00:05]} 28. d4 {[%clk 0:01:21.7]} 28... Re2 {[%clk 0:00:05.5]} 29. Rc1 {[%clk
0:01:20.9]} 29... Qe7 {[%clk 0:00:03.7]} 30. b4 {[%clk 0:01:10.9]} 30... d5
{[%clk 0:00:04.1]} 31. Rg1 {[%clk 0:01:03.1]} 31... f6 {[%clk 0:00:05.2]} 32.
Bd3 {[%clk 0:01:00.6]} 32... Rd2 {[%clk 0:00:05.8]} 33. Bf1 {[%clk 0:00:49.1]}
33... c6 {[%clk 0:00:07]} 34. Bg2 {[%clk 0:00:47.2]} 34... Kf8 {[%clk 0:00:05]}
35. a5 {[%clk 0:00:48.3]} 35... Kg8 {[%clk 0:00:05.9]} 36. Kh2 {[%clk 0:00:45]}
36... Kh8 {[%clk 0:00:07.2]} 37. Bf1 {[%clk 0:00:43.8]} 37... Kh7 {[%clk
0:00:07.1]} 38. Rg2 {[%clk 0:00:42.4]} 38... Kh8 {[%clk 0:00:06.2]} 39. Qe3
{[%clk 0:00:39]} 39... Qxe3 {[%clk 0:00:03]} 40. fxe3 {[%clk 0:00:40.9]} 40...
Rd1 {[%clk 0:00:04.8]} 41. Be2 {[%clk 0:00:36.1]} 41... Rc1 {[%clk 0:00:05.5]}
42. e4 {[%clk 0:00:29.7]} 42... Rxc3 {[%clk 0:00:03.5]} 43. e5 {[%clk
0:00:30.2]} 43... fxe5 {[%clk 0:00:02.9]} 44. dxe5 {[%clk 0:00:31]} 44... Re3
{[%clk 0:00:04.8]} 45. e6 {[%clk 0:00:32.4]} 45... Kg8 {[%clk 0:00:05.9]} 46.
Bh5 {[%clk 0:00:34]} 46... Kf8 {[%clk 0:00:07.2]} 47. Re2 {[%clk 0:00:30.5]}
47... Rxe2+ {[%clk 0:00:07.4]} 48. Bxe2 {[%clk 0:00:32.4]} 48... Ke7 {[%clk
0:00:09]} 49. Kg3 {[%clk 0:00:34]} 49... Kf6 {[%clk 0:00:08.9]} 50. Kf4 {[%clk
0:00:35.2]} 50... g5+ {[%clk 0:00:09.7]} 51. fxg6 {[%clk 0:00:36.6]} 51... Kxe6
{[%clk 0:00:10.6]} 52. h4 {[%clk 0:00:36.1]} 52... Kf6 {[%clk 0:00:11.9]} 53. h5
{[%clk 0:00:37.5]} 53... Ke6 {[%clk 0:00:13.1]} 54. Ke3 {[%clk 0:00:38.8]} 54...
Kf6 {[%clk 0:00:12.1]} 55. Kd4 {[%clk 0:00:40.3]} 1-0

[Event "*** Biggest EVER Titled Tuesday"]
[Site "Chess.com"]
[Date "2018.04.17"]
[Round "3"]
[White "Renegade_Hitman"]
[Black "LordIron"]
[Result "1-0"]
[WhiteElo "2079"]
[BlackElo "2126"]
[TimeControl "180+2"]
[EndTime "13:36:30 PDT"]
[Termination "Renegade_Hitman won on time"]

1. d4 {[%clk 0:01:23.9]} 1... c5 {[%clk 0:03:01.9]} 2. d5 {[%clk 0:01:24.5]}
2... e5 {[%clk 0:03:02.6]} 3. e4 {[%clk 0:01:24]} 3... d6 {[%clk 0:03:03.9]} 4.
Nf3 {[%clk 0:01:24.8]} 4... Be7 {[%clk 0:03:02.2]} 5. Be2 {[%clk 0:01:25.5]}
5... f5 {[%clk 0:03:03.1]} 6. Nfd2 {[%clk 0:01:23.7]} 6... Nf6 {[%clk
0:03:02.7]} 7. Nc3 {[%clk 0:01:22.9]} 7... O-O {[%clk 0:03:01.8]} 8. O-O {[%clk
0:01:21.6]} 8... Na6 {[%clk 0:02:57.3]} 9. Bxa6 {[%clk 0:01:16.2]} 9... bxa6
{[%clk 0:02:59.2]} 10. Re1 {[%clk 0:01:17.2]} 10... Rb8 {[%clk 0:02:55.1]} 11.
Nc4 {[%clk 0:01:17.9]} 11... fxe4 {[%clk 0:02:53.2]} 12. Nxe4 {[%clk 0:01:17.5]}
12... Nxe4 {[%clk 0:02:55.1]} 13. Rxe4 {[%clk 0:01:18.2]} 13... Bf5 {[%clk
0:02:56.8]} 14. Re3 {[%clk 0:01:15.9]} 14... Bg5 {[%clk 0:02:49.5]} 15. Ra3
{[%clk 0:01:13.9]} 15... Bxc1 {[%clk 0:02:25.9]} 16. Qxc1 {[%clk 0:01:10.1]}
16... Be4 {[%clk 0:02:22.7]} 17. Qd2 {[%clk 0:01:04.2]} 17... Rb4 {[%clk
0:02:19.8]} 18. c3 {[%clk 0:00:58]} 18... Rxc4 {[%clk 0:02:18.3]} 19. b3 {[%clk
0:00:59.2]} 19... Rd4 {[%clk 0:02:02.5]} 20. cxd4 {[%clk 0:00:59.7]} 20... cxd4
{[%clk 0:02:04.4]} 21. Rxa6 {[%clk 0:00:54.7]} 21... Bxd5 {[%clk 0:02:04.4]} 22.
Rxa7 {[%clk 0:00:54.7]} 22... Qb6 {[%clk 0:01:57.7]} 23. Qa5 {[%clk 0:00:49.9]}
23... Qxa5 {[%clk 0:01:34.3]} 24. Rxa5 {[%clk 0:00:48.8]} 24... Be6 {[%clk
0:01:31.8]} 25. Ra6 {[%clk 0:00:47.4]} 25... Rd8 {[%clk 0:01:30.6]} 26. Rc1
{[%clk 0:00:47.9]} 26... d3 {[%clk 0:01:29.6]} 27. Kf1 {[%clk 0:00:44.5]} 27...
e4 {[%clk 0:01:28.4]} 28. Ke1 {[%clk 0:00:44.8]} 28... Kf7 {[%clk 0:01:26.6]}
29. Rc7+ {[%clk 0:00:43.2]} 29... Kf6 {[%clk 0:01:27]} 30. Rcc6 {[%clk
0:00:36.7]} 30... Ke5 {[%clk 0:01:26.4]} 31. b4 {[%clk 0:00:37.8]} 31... Rb8
{[%clk 0:01:18.9]} 32. Rxd6 {[%clk 0:00:35.7]} 32... Bxa2 {[%clk 0:01:20.4]} 33.
Rdb6 {[%clk 0:00:32.6]} 33... Rxb6 {[%clk 0:00:41.4]} 34. Rxb6 {[%clk
0:00:34.5]} 34... Kd4 {[%clk 0:00:42]} 35. Rc6 {[%clk 0:00:30.9]} 35... Bd5
{[%clk 0:00:41.6]} 36. Rc7 {[%clk 0:00:30.6]} 36... e3 {[%clk 0:00:33.8]} 37.
fxe3+ {[%clk 0:00:23.1]} 37... Kxe3 {[%clk 0:00:35.7]} 38. Re7+ {[%clk
0:00:20.4]} 38... Kd4 {[%clk 0:00:33.7]} 39. Rxg7 {[%clk 0:00:12]} 39... h5
{[%clk 0:00:28.3]} 40. Kd2 {[%clk 0:00:10.8]} 40... Kc4 {[%clk 0:00:24.3]} 41.
Rg5 {[%clk 0:00:10.8]} 41... Be4 {[%clk 0:00:23.5]} 42. Rxh5 {[%clk 0:00:11.4]}
42... Bxg2 {[%clk 0:00:22.1]} 43. Rh4+ {[%clk 0:00:12.2]} 43... Kb5 {[%clk
0:00:21.5]} 44. Kxd3 {[%clk 0:00:13]} 44... Bf1+ {[%clk 0:00:22.4]} 45. Kc3
{[%clk 0:00:14]} 45... Bg2 {[%clk 0:00:23]} 46. Rh5+ {[%clk 0:00:14.5]} 46...
Kb6 {[%clk 0:00:23.6]} 47. Rg5 {[%clk 0:00:15.2]} 47... Be4 {[%clk 0:00:23.4]}
48. h4 {[%clk 0:00:16.4]} 1-0

[Event "*** Biggest EVER Titled Tuesday"]
[Site "Chess.com"]
[Date "2018.04.17"]
[Round "3"]
[White "ChessQueen"]
[Black "ChessTrail"]
[Result "1-0"]
[WhiteElo "2625"]
[BlackElo "2493"]
[TimeControl "180+2"]
[EndTime "13:36:31 PDT"]
[Termination "ChessQueen won by resignation"]

1. e4 {[%clk 0:03:01.9]} 1... c5 {[%clk 0:02:53.4]} 2. c3 {[%clk 0:03:01.7]}
2... e6 {[%clk 0:02:53.4]} 3. d4 {[%clk 0:03:01.7]} 3... d5 {[%clk 0:02:54.2]}
4. exd5 {[%clk 0:03:00]} 4... exd5 {[%clk 0:02:54.9]} 5. Nf3 {[%clk 0:03:01]}
5... Nc6 {[%clk 0:02:55.9]} 6. Bb5 {[%clk 0:02:59.7]} 6... Bd6 {[%clk
0:02:55.7]} 7. O-O {[%clk 0:02:54.9]} 7... Ne7 {[%clk 0:02:56.5]} 8. dxc5 {[%clk
0:02:55.1]} 8... Bxc5 {[%clk 0:02:56.8]} 9. Bg5 {[%clk 0:02:45.9]} 9... O-O
{[%clk 0:02:34.8]} 10. Nbd2 {[%clk 0:02:42]} 10... Qc7 {[%clk 0:02:31.9]} 11.
Nb3 {[%clk 0:02:24.1]} 11... Bd6 {[%clk 0:02:30.8]} 12. h3 {[%clk 0:02:22.2]}
12... f6 {[%clk 0:02:15.8]} 13. Be3 {[%clk 0:02:18.5]} 13... Bf5 {[%clk
0:01:57.7]} 14. Nbd4 {[%clk 0:02:14.6]} 14... Be4 {[%clk 0:01:58.3]} 15. Ne6
{[%clk 0:02:11.5]} 15... Qa5 {[%clk 0:01:53.4]} 16. Bxc6 {[%clk 0:02:07.1]}
16... bxc6 {[%clk 0:01:49]} 17. Nxf8 {[%clk 0:02:07.1]} 17... Rxf8 {[%clk
0:01:49]} 18. Nd2 {[%clk 0:02:03.9]} 18... Bg6 {[%clk 0:01:31.8]} 19. Nb3 {[%clk
0:02:00.2]} 19... Qb5 {[%clk 0:01:29.4]} 20. Re1 {[%clk 0:01:53.8]} 20... Nf5
{[%clk 0:01:12.4]} 21. Bxa7 {[%clk 0:01:46]} 21... Ra8 {[%clk 0:01:02.1]} 22.
Be3 {[%clk 0:01:36.5]} 22... Nxe3 {[%clk 0:00:57]} 23. Rxe3 {[%clk 0:01:37.4]}
23... Bf7 {[%clk 0:00:54.8]} 24. Re1 {[%clk 0:01:21.7]} 24... c5 {[%clk
0:00:54.7]} 25. Qc2 {[%clk 0:01:13.1]} 25... Bg6 {[%clk 0:00:49.6]} 26. Qe2
{[%clk 0:01:07.5]} 26... Qc6 {[%clk 0:00:33.4]} 27. Nd2 {[%clk 0:01:01.5]} 27...
c4 {[%clk 0:00:28.5]} 28. Nf3 {[%clk 0:01:00.7]} 28... Be4 {[%clk 0:00:25.9]}
29. Nd4 {[%clk 0:00:56.2]} 29... Qd7 {[%clk 0:00:16]} 30. f3 {[%clk 0:00:53.4]}
30... Bd3 {[%clk 0:00:16.7]} 31. Qe6+ {[%clk 0:00:53.9]} 31... Qxe6 {[%clk
0:00:17.8]} 32. Rxe6 {[%clk 0:00:52.3]} 32... Bc5 {[%clk 0:00:18.3]} 33. Rc6
{[%clk 0:00:46.8]} 33... Bxd4+ {[%clk 0:00:17.6]} 34. cxd4 {[%clk 0:00:47.5]}
34... Ra5 {[%clk 0:00:19]} 35. Rc7 {[%clk 0:00:35]} 35... h5 {[%clk 0:00:19.5]}
36. a4 {[%clk 0:00:32.4]} 36... Bc2 {[%clk 0:00:19.7]} 37. Re1 {[%clk
0:00:32.1]} 37... Rxa4 {[%clk 0:00:19.7]} 38. Ree7 {[%clk 0:00:27.9]} 38... Rb4
{[%clk 0:00:15.7]} 39. Rxg7+ {[%clk 0:00:28]} 39... Kh8 {[%clk 0:00:17]} 40.
Rgd7 {[%clk 0:00:25.6]} 40... Rb8 {[%clk 0:00:17.9]} 41. Rxd5 {[%clk 0:00:26.3]}
41... Bg6 {[%clk 0:00:17.2]} 42. Rdc5 {[%clk 0:00:23.2]} 42... Rxb2 {[%clk
0:00:14.2]} 43. Rxc4 {[%clk 0:00:23.4]} 43... Rb1+ {[%clk 0:00:14.2]} 44. Rc1
{[%clk 0:00:24.2]} 44... Rb4 {[%clk 0:00:14.6]} 45. Rd1 {[%clk 0:00:25]} 45...
Rb2 {[%clk 0:00:08.6]} 46. d5 {[%clk 0:00:25.2]} 46... Bc2 {[%clk 0:00:09.8]}
47. Rd2 {[%clk 0:00:23.7]} 47... Rb1+ {[%clk 0:00:10.4]} 48. Kf2 {[%clk
0:00:24.5]} 48... Bf5 {[%clk 0:00:12.3]} 49. d6 {[%clk 0:00:23.3]} 49... Kg8
{[%clk 0:00:13.5]} 50. d7 {[%clk 0:00:23.6]} 1-0

[Event "*** Biggest EVER Titled Tuesday"]
[Site "Chess.com"]
[Date "2018.04.17"]
[Round "3"]
[White "cheese111"]
[Black "MITerryble"]
[Result "0-1"]
[WhiteElo "2419"]
[BlackElo "2643"]
[TimeControl "180+2"]
[EndTime "13:36:32 PDT"]
[Termination "MITerryble won by resignation"]

1. e4 {[%clk 0:03:01.9]} 1... e6 {[%clk 0:03:00.9]} 2. d4 {[%clk 0:03:02.3]}
2... d5 {[%clk 0:03:01.9]} 3. exd5 {[%clk 0:03:04]} 3... exd5 {[%clk 0:03:02.6]}
4. Nf3 {[%clk 0:03:05.6]} 4... c6 {[%clk 0:03:00.2]} 5. c4 {[%clk 0:03:06.2]}
5... Bb4+ {[%clk 0:03:00]} 6. Nc3 {[%clk 0:03:06]} 6... Nf6 {[%clk 0:03:00.6]}
7. Bd3 {[%clk 0:02:59.7]} 7... O-O {[%clk 0:03:01.2]} 8. O-O {[%clk 0:03:00.5]}
8... Bg4 {[%clk 0:02:58.3]} 9. Be3 {[%clk 0:02:19.2]} 9... dxc4 {[%clk
0:02:52.9]} 10. Bxc4 {[%clk 0:02:19.8]} 10... Nbd7 {[%clk 0:02:54.1]} 11. h3
{[%clk 0:02:20.7]} 11... Bh5 {[%clk 0:02:52.5]} 12. g4 {[%clk 0:02:21.7]} 12...
Bg6 {[%clk 0:02:53.7]} 13. Ne5 {[%clk 0:02:23.1]} 13... Nb6 {[%clk 0:02:55]} 14.
Bb3 {[%clk 0:02:21.1]} 14... Nfd5 {[%clk 0:02:56.1]} 15. Bd2 {[%clk 0:02:17.8]}
15... Qh4 {[%clk 0:02:39.7]} 16. Qf3 {[%clk 0:02:02.5]} 16... Bd6 {[%clk
0:02:31]} 17. Rae1 {[%clk 0:01:54.9]} 17... Rad8 {[%clk 0:02:28.4]} 18. a4
{[%clk 0:01:25.9]} 18... Nxc3 {[%clk 0:02:02.9]} 19. bxc3 {[%clk 0:01:21]} 19...
Nd5 {[%clk 0:01:50.1]} 20. a5 {[%clk 0:00:38.3]} 20... a6 {[%clk 0:01:49.6]} 21.
Kg2 {[%clk 0:00:34.8]} 21... Bc7 {[%clk 0:01:49.7]} 22. c4 {[%clk 0:00:32.9]}
22... Nf6 {[%clk 0:01:50.2]} 23. d5 {[%clk 0:00:21.7]} 23... c5 {[%clk 0:01:38]}
24. Bf4 {[%clk 0:00:17.2]} 24... Nd7 {[%clk 0:01:19.4]} 25. Nc6 {[%clk
0:00:08.6]} 25... Bxf4 {[%clk 0:00:54.5]} 26. Nxd8 {[%clk 0:00:09.3]} 26... Bb8
{[%clk 0:00:55.4]} 27. Nxb7 {[%clk 0:00:07.8]} 27... f5 {[%clk 0:00:56.6]} 28.
d6 {[%clk 0:00:06.3]} 28... h5 {[%clk 0:00:48.9]} 29. Qg3 {[%clk 0:00:05.5]}
29... Qf6 {[%clk 0:00:49.7]} 30. g5 {[%clk 0:00:06.6]} 30... Qb2 {[%clk
0:00:46.6]} 31. Rb1 {[%clk 0:00:07.3]} 31... Qd4 {[%clk 0:00:40.7]} 32. Rfd1
{[%clk 0:00:06.5]} 32... Qe4+ {[%clk 0:00:41.8]} 33. Qf3 {[%clk 0:00:07]} 33...
f4 {[%clk 0:00:43.2]} 34. Re1 {[%clk 0:00:06.9]} 34... Qf5 {[%clk 0:00:34.4]}
35. Qd5+ {[%clk 0:00:07.9]} 35... Qxd5+ {[%clk 0:00:29.8]} 36. cxd5 {[%clk
0:00:09.8]} 36... f3+ {[%clk 0:00:30.7]} 37. Kg1 {[%clk 0:00:09.8]} 37... Bxb1
{[%clk 0:00:31.5]} 38. Rxb1 {[%clk 0:00:10.2]} 38... Rf4 {[%clk 0:00:22.9]} 39.
Bc2 {[%clk 0:00:07.1]} 39... Ba7 {[%clk 0:00:17.5]} 40. Re1 {[%clk 0:00:05.2]}
40... c4 {[%clk 0:00:14.1]} 41. Re7 {[%clk 0:00:05.5]} 41... Nf8 {[%clk
0:00:06.8]} 42. d7 {[%clk 0:00:06.3]} 42... Nxd7 {[%clk 0:00:08]} 43. Rxd7
{[%clk 0:00:08.2]} 43... Rd4 {[%clk 0:00:07.2]} 44. Bg6 {[%clk 0:00:08.8]} 44...
Kf8 {[%clk 0:00:07.6]} 45. Rf7+ {[%clk 0:00:09.6]} 45... Kg8 {[%clk 0:00:08.9]}
46. Re7 {[%clk 0:00:11.1]} 46... Rf4 {[%clk 0:00:09.5]} 47. Re8+ {[%clk
0:00:12]} 47... Rf8 {[%clk 0:00:11.4]} 48. Bh7+ {[%clk 0:00:13.4]} 48... Kf7
{[%clk 0:00:12]} 49. g6+ {[%clk 0:00:14.1]} 49... Kxe8 {[%clk 0:00:13]} 0-1